lending/lending_fUSD_20260411
["ID","MTS","AMOUNT","RATE_DAILY","PERIOD"]
[420244710,1775851832774,-579.0,0.00011671,2]
[420244711,1775851832785,-1493.0,0.00011695,2]
[420244712,1775851832798,-204.0,0.00011707,2]
[420244713,1775851832811,-223.0,0.00011717,2]
[420244714,1775851832821,-255.0,0.00011737,2]
[420244715,1775851832835,-3413.66060849,0.00011765,2]
[420244716,1775851832848,-150.99,0.00011765,2]
[420244717,1775851832860,-9999.99,0.00011765,2]
[420244718,1775851832869,-5966.33,0.00011765,2]
[420244719,1775851832884,-5000.0,0.00011769,2]
[420244720,1775851832894,-1680.0,0.00011769,2]
[420244721,1775851832903,-655.72,0.0001177,2]
[420244722,1775851832915,-5000.0,0.0001177,2]
[420244723,1775851832927,-250.0,0.0001177,2]
[420244724,1775851832937,-5000.0,0.0001177,2]
[420244725,1775851832951,-1784.99,0.00011806,2]
[420244726,1775851832961,-151.0,0.00011852,2]
[420244727,1775851832979,-151.0,0.00011852,2]
[420244728,1775851832991,-150.0,0.00012,2]
[420244729,1775851833003,-1440.97489954,0.00012044,2]
[420244730,1775851833018,-284.0,0.00012044,2]
[420244731,1775851833031,-4848.08628721,0.00012136,2]
[420244732,1775851833043,-1157.0,0.00012224,2]
[420244733,1775851833052,-335.0,0.00012224,2]
[420244734,1775851833072,-270.08419038,0.00012249,2]
[420244735,1775851833089,-254.04,0.00012259,2]
[420244736,1775851833110,-427.0,0.00012265,2]
[420244737,1775851833122,-228.0,0.00012344,2]
[420244738,1775851833139,-306.0,0.00012368,2]
[420244739,1775851833155,-150.0,0.00012463,2]
[420244740,1775851833178,-4848.08628721,0.00012606,2]
[420244741,1775851833194,-433.0,0.00012871,2]
[420244742,1775851833204,-6431.2659,0.00012936,2]
[420244743,1775851833219,-530.0,0.00012946,2]
[420244744,1775851833252,-250.0,0.00013,2]
[420244745,1775851833265,-716.26425998,0.00013065,2]
[420244746,1775851833288,-4848.08628721,0.00013077,2]
[420244747,1775851833298,-500.0,0.00013077,2]
[420244748,1775851833311,-151.0,0.00013087,2]
[420244749,1775851833340,-151.0,0.00013087,2]
[420244750,1775851833350,-151.0,0.00013087,2]
[420244751,1775851833369,-151.0,0.00013087,2]
[420244752,1775851833386,-151.0,0.00013087,2]
[420244753,1775851833396,-151.0,0.00013087,2]
[420244754,1775851833418,-151.0,0.00013087,2]
[420244755,1775851833433,-151.0,0.00013087,2]
[420244756,1775851833445,-151.0,0.00013087,2]
[420244757,1775851833458,-151.0,0.00013087,2]
[420244758,1775851833478,-151.0,0.00013087,2]
[420244759,1775851833489,-151.0,0.00013087,2]
[420244760,1775851833498,-151.0,0.00013087,2]
[420244761,1775851833521,-151.0,0.00013087,2]
[420244762,1775851833534,-200.0,0.00013087,2]
[420244763,1775851833550,-151.0,0.00013087,2]
[420244764,1775851833570,-500.0,0.00013087,2]
[420244765,1775851833598,-151.0,0.00013087,2]
[420244766,1775851833609,-500.0,0.00013087,2]
[420244767,1775851833621,-500.0,0.00013087,2]
[420244768,1775851833643,-500.0,0.00013087,2]
[420244769,1775851833662,-500.0,0.00013087,2]
[420244770,1775851833673,-500.0,0.00013087,2]
[420244771,1775851833698,-500.0,0.00013087,2]
[420244772,1775851833711,-500.0,0.00013087,2]
[420244773,1775851833724,-500.0,0.00013087,2]
[420244774,1775851833756,-500.0,0.00013087,2]
[420244775,1775851833765,-500.0,0.00013087,2]
[420244776,1775851833779,-500.0,0.00013087,2]
[420244777,1775851833798,-500.0,0.00013087,2]
[420244778,1775851833808,-500.0,0.00013087,2]
[420244779,1775851833818,-500.0,0.00013087,2]
[420244780,1775851833849,-500.0,0.00013087,2]
[420244781,1775851833858,-500.0,0.00013087,2]
[420244782,1775851833883,-500.0,0.00013087,2]
[420244783,1775851833899,-500.0,0.00013087,2]
[420244784,1775851833908,-500.0,0.00013087,2]
[420244785,1775851833923,-500.0,0.00013087,2]
[420244786,1775851833935,-500.0,0.00013087,2]
[420244787,1775851833947,-500.0,0.00013087,2]
[420244788,1775851833959,-500.0,0.00013087,2]
[420244789,1775851833969,-500.0,0.00013087,2]
[420244790,1775851833979,-500.0,0.00013087,2]
[420244791,1775851833996,-500.0,0.00013087,2]
[420244792,1775851834025,-500.0,0.00013087,2]
[420244793,1775851834041,-500.0,0.00013087,2]
[420244794,1775851834066,-500.0,0.00013087,2]
[420244795,1775851834076,-152.64494361,0.00013087,2]
[420244796,1775851834104,-1156.41848616,0.00013087,2]
[420244797,1775851834120,-506.0,0.000131,2]
[420244798,1775851834145,-2500.0,0.00013133,2]
[420244799,1775851834191,-578.20924308,0.00013233,2]
[420244800,1775851834209,-1328.27659266,0.00013233,2]
[420244801,1775851834223,-181.08010149,0.00013233,2]
[420244802,1775851834238,-500.0,0.00013233,2]
[420244803,1775851834251,-7965.41053268,0.00013233,2]
[420244804,1775851834269,-9413.78844064,0.00013233,2]
[420244805,1775851834280,-200.0,0.00013233,2]
[420244806,1775851834306,-396.0429306,0.00013233,2]
[420244807,1775851834316,-174.61919141,0.00013233,2]
[420244808,1775851834338,-743.50770149,0.00013233,2]
[420244809,1775851834348,-151.0,0.00013233,2]
[420244810,1775851834361,-170.0,0.00013233,2]
[420244811,1775851834377,-170.0,0.00013233,2]
[420244812,1775851834388,-170.0,0.00013233,2]
[420244813,1775851834401,-170.0,0.00013233,2]
[420244814,1775851834411,-170.0,0.00013233,2]
[420244815,1775851834426,-170.0,0.00013233,2]
[420244816,1775851834436,-170.0,0.00013233,2]
[420244817,1775851834447,-170.0,0.00013233,2]
[420244818,1775851834457,-170.0,0.00013233,2]
[420244819,1775851834476,-170.0,0.00013233,2]
[420244820,1775851834486,-170.0,0.00013233,2]
[420244821,1775851834499,-170.0,0.00013233,2]
[420244822,1775851834518,-170.0,0.00013233,2]
[420244823,1775851834528,-170.0,0.00013233,2]
[420244824,1775851834540,-170.0,0.00013233,2]
[420244825,1775851834571,-294.72018971,0.00013288,2]
[420244826,1775851834584,-500.57038075,0.000133,2]
[420244827,1775851834629,-173.734,0.000133,2]
[420244828,1775851834643,-4848.08628721,0.00013547,2]
[420244829,1775851834663,-200.0,0.00013635,2]
[420244830,1775851834687,-1286.36407503,0.00013635,2]
[420244831,1775851834701,-2000.0,0.00013638,2]
[420244832,1775851834724,-508.86276393,0.00013691,2]
[420244833,1775851834734,-500.0,0.00013698,2]
[420244834,1775851834752,-200.0,0.00013699,2]
[420244835,1775851834782,-276.99747719,0.00013769,2]
[420244836,1775851834791,-200.0,0.00013781,2]
[420244837,1775851834802,-900.53212661,0.00013791,2]
[420244838,1775851834823,-5000.0,0.00013801,2]
[420244839,1775851834844,-252.45061293,0.00013845,2]
[420244840,1775851834854,-888.42596194,0.00013845,2]
[420244841,1775851834864,-1390.42886195,0.00013845,2]
[420244842,1775851834880,-30371.68947792,0.00013863,2]
[420244843,1775851834934,-11649.31052208,0.00013863,2]
[420244844,1775851834945,-572.28521995,0.00013891,2]
[420244845,1775851834963,-276.9527012,0.000139,2]
[420244846,1775851834972,-500.0,0.000139,2]
[420244847,1775851834982,-182.95,0.000139,2]
[420244848,1775851835000,-534.90462853,0.000139,2]
[420244849,1775851835009,-261.96735213,0.000139,2]
[420244850,1775851835019,-500.0,0.000139,2]
[420244851,1775851835030,-243.23876454,0.000139,2]
[420244852,1775851835061,-234.22378392,0.000139,2]
[420244853,1775851835071,-150.0,0.000139,2]
[420244854,1775851835082,-16280.86771972,0.00013901,2]
[420244855,1775851835100,-7339.2062754,0.00013901,2]
[420244856,1775851835112,-447.6126523,0.00013901,2]
[420244857,1775851835126,-1309.45761818,0.00013901,2]
[420244858,1775851835151,-538.8616,0.00013901,2]
[420244859,1775851835164,-776.35787928,0.00013901,2]
[420244860,1775851835208,-6650.75666621,0.00013901,2]
[420244861,1775851835223,-397.97126431,0.00013901,2]
[420244862,1775851835243,-4934.76220405,0.00013901,2]
[420244863,1775851835312,-300.0,0.00012935,2]
[420244864,1775851835329,-85.69211647,0.00012935,2]
[420244865,1775851835342,-500.0,0.00013351,2]
[420244866,1775851835354,-1196.69523123,0.00013901,2]
[420244867,1775851835366,-11168.81144696,0.00013901,2]
[420244871,1775851838039,-500.0,0.00013625,2]
[420244872,1775851838057,-5361.0,0.00013901,2]
[420244873,1775851838098,-1208166.72189822,0.00013901,2]
[420244874,1775851838176,-426.61846658,0.00013901,2]
[420245000,1775851840727,-840.8069909,0.00013901,2]
[420245001,1775851840743,-420386.63659678,0.00013901,2]
[420245002,1775851840819,-276.99747719,0.00013901,2]
[420245003,1775851840829,-1270.57179357,0.00013901,2]
[420245004,1775851840849,-3882.68968757,0.00013901,2]
[420245014,1775851842958,-10597.40367195,0.00013901,2]
[420245016,1775851846022,-151.0,0.00013182,2]
[420245017,1775851846054,-525.01587952,0.00013901,2]
[420245019,1775851846314,-18799.28192885,0.00013901,2]
[420245020,1775851846329,-417.37929,0.00013901,2]
[420245022,1775851917760,197.0441,0.000106,2]
[420245023,1775851972153,-96653.35832436,0.00046512,45]
[420245024,1775851972282,-1000000.0,0.00046512,50]
[420245025,1775851972837,-1000000.0,0.00046512,50]
[420245026,1775851972920,-1000000.0,0.00046512,40]
[420245027,1775851973001,-1000000.0,0.00046512,40]
[420245028,1775851973095,-496.8921608,0.00046512,120]
[420245029,1775851973190,-9998.460005,0.00046512,45]
[420245030,1775851973316,-1000000.0,0.00046512,40]
[420245031,1775851973415,-1000000.0,0.00046512,55]
[420245032,1775851973494,-1000000.0,0.00046512,55]
[420245033,1775851973573,-500.0,0.00046512,120]
[420245034,1775851973650,-500.0,0.00046512,120]
[420245035,1775851973728,-500.0,0.00046512,120]
[420245036,1775851973802,-500.0,0.00046512,120]
[420245037,1775851973885,-500.0,0.00046512,120]
[420245038,1775851973989,-500.0,0.00046512,120]
[420245039,1775851974096,-500.0,0.00046512,120]
[420245040,1775851974206,-500.0,0.00046512,120]
[420245041,1775851974290,-500.0,0.00046512,120]
[420245042,1775851974369,-185.07831067,0.00046512,120]
[420245043,1775851974440,-2003.0,0.00046512,120]
[420245044,1775851974509,-584.64,0.00046512,120]
[420245045,1775851974576,-584.64,0.00046512,120]
[420245046,1775851974644,-584.64,0.00046512,120]
[420245047,1775851974712,-584.64,0.00046512,120]
[420245048,1775851974788,-584.64,0.00046512,120]
[420245049,1775851974868,-584.64,0.00046512,120]
[420245050,1775851974955,-584.64,0.00046512,120]
[420245051,1775851975054,-584.64,0.00046512,120]
[420245052,1775851975130,-584.64,0.00046512,120]
[420245053,1775851975215,-584.64,0.00046512,120]
[420245054,1775851975294,-584.64,0.00046512,120]
[420245055,1775851975366,-584.64,0.00046512,120]
[420245056,1775851975454,-584.64,0.00046512,120]
[420245057,1775851975567,-584.64,0.00046512,120]
[420245058,1775851975644,-584.64,0.00046512,120]
[420245059,1775851975726,-584.64,0.00046512,120]
[420245060,1775851975796,-584.64,0.00046512,120]
[420245061,1775851975870,-584.64,0.00046512,120]
[420245062,1775851975947,-584.64,0.00046512,120]
[420245063,1775851976027,-584.64,0.00046512,120]
[420245064,1775851976140,-584.64,0.00046512,120]
[420245065,1775851976236,-584.64,0.00046512,120]
[420245066,1775851976325,-584.64,0.00046512,120]
[420245067,1775851976410,-584.70787587,0.00046512,120]
[420245068,1775851976488,-244686.28180702,0.00046512,120]
[420245069,1775851976561,-500.0,0.00046512,120]
[420245070,1775851976642,-500.0,0.00046512,120]
[420245071,1775851976717,-500.0,0.00046512,120]
[420245072,1775851976797,-500.0,0.00046512,120]
[420245073,1775851976872,-500.0,0.00046512,120]
[420245074,1775851976942,-500.0,0.00046512,120]
[420245075,1775851977019,-500.0,0.00046512,120]
[420245076,1775851977096,-500.0,0.00046512,120]
[420245077,1775851977176,-500.0,0.00046512,120]
[420245078,1775851977253,-500.0,0.00046512,120]
[420245079,1775851977363,-500.0,0.00046512,120]
[420245080,1775851977511,-500.0,0.00046512,120]
[420245081,1775851977619,-288.53467336,0.00046512,120]
[420245082,1775851977719,-1621156.96684292,0.00046512,120]
[420245083,1775851983486,-1153990.72315708,0.00046512,120]
[420245084,1775851983565,-1530.18,0.00046512,120]
[420245085,1775851983644,-5340.45663703,0.00046512,30]
[420245086,1775851983716,-1128.1,0.00046512,120]
[420245087,1775851983786,-1128.1,0.00046512,120]
[420245088,1775851983853,-1128.1,0.00046512,120]
[420245089,1775851983919,-1128.1,0.00046512,120]
[420245090,1775851983987,-1128.1,0.00046512,120]
[420245091,1775851984053,-1128.1,0.00046512,120]
[420245092,1775851984124,-1128.1,0.00046512,120]
[420245093,1775851984194,-1128.1,0.00046512,120]
[420245094,1775851984268,-1128.1,0.00046512,120]
[420245095,1775851984346,-1128.1,0.00046512,120]
[420245096,1775851984434,-1128.1,0.00046512,120]
[420245097,1775851984522,-1128.1,0.00046512,120]
[420245098,1775851984610,-1128.1,0.00046512,120]
[420245099,1775851984689,-1128.1,0.00046512,120]
[420245100,1775851984788,-1128.1,0.00046512,120]
[420245101,1775851984917,-1128.1,0.00046512,120]
[420245102,1775851985002,-1128.1,0.00046512,120]
[420245103,1775851985075,-1128.1,0.00046512,120]
[420245104,1775851985155,-1128.1,0.00046512,120]
[420245105,1775851985220,-1128.1,0.00046512,120]
[420245106,1775851985286,-1128.1,0.00046512,120]
[420245107,1775851985356,-1128.1,0.00046512,120]
[420245108,1775851985426,-1128.1,0.00046512,120]
[420245109,1775851985494,-1128.22527633,0.00046512,120]
[420245110,1775851985566,-1000.0,0.00046512,31]
[420245111,1775851985644,-1000.0,0.00046512,31]
[420245112,1775851985720,-1069.72946307,0.00046512,31]
[420245113,1775851985792,-1000.0,0.00046512,31]
[420245114,1775851985860,-1000.0,0.00046512,31]
[420245115,1775851985943,-1000.0,0.00046512,31]
[420245116,1775851986029,-1000.0,0.00046512,31]
[420245117,1775851986120,-1000.0,0.00046512,31]
[420245118,1775851986218,-1000.0,0.00046512,31]
[420245119,1775851986313,-1000.0,0.00046512,31]
[420245120,1775851986411,-1000.0,0.00046512,31]
[420245121,1775851986481,-1000.0,0.00046512,31]
[420245122,1775851986553,-1000.0,0.00046512,31]
[420245123,1775851986619,-1000.0,0.00046512,31]
[420245124,1775851986688,-1000.0,0.00046512,31]
[420245125,1775851986756,-1000.0,0.00046512,31]
[420245126,1775851986822,-1000.0,0.00046512,31]
[420245127,1775851986887,-1000.0,0.00046512,31]
[420245128,1775851986958,-1000.0,0.00046512,31]
[420245129,1775851987041,-1000.0,0.00046512,31]
[420245130,1775851987113,-1000.0,0.00046512,31]
[420245131,1775851987195,-1000.0,0.00046512,31]
[420245132,1775851987287,-1000.0,0.00046512,31]
[420245133,1775851987382,-1000.0,0.00046512,31]
[420245134,1775851987483,-1000.0,0.00046512,31]
[420245135,1775851987599,-1000.0,0.00046512,31]
[420245136,1775851987684,-1000.0,0.00046512,31]
[420245137,1775851988097,-1000.0,0.00046512,31]
[420245138,1775851988196,-1000.0,0.00046512,31]
[420245139,1775851988307,-1000.0,0.00046512,31]
[420245140,1775851988439,-1000.0,0.00046512,31]
[420245141,1775851988539,-1000.0,0.00046512,31]
[420245142,1775851988614,-1000.0,0.00046512,31]
[420245143,1775851988689,-1000.0,0.00046512,31]
[420245144,1775851988768,-524.29005479,0.00046512,120]
[420245145,1775851988838,-2100.0,0.00046512,120]
[420245146,1775851988907,-500.0,0.00046512,120]
[420245147,1775851988984,-500.0,0.00046512,120]
[420245148,1775851989059,-500.0,0.00046512,120]
[420245149,1775851989136,-500.0,0.00046512,120]
[420245150,1775851989215,-500.0,0.00046512,120]
[420245151,1775851989297,-500.0,0.00046512,120]
[420245152,1775851989375,-500.0,0.00046512,120]
[420245153,1775851989461,-500.0,0.00046512,120]
[420245154,1775851989551,-640.0,0.00046512,120]
[420245155,1775851989636,-503.92786516,0.00046512,120]
[420245156,1775851989705,-500.0,0.00046512,120]
[420245157,1775851989782,-507.20861804,0.00046512,120]
[420245158,1775851989853,-5000.0,0.00046512,120]
[420245159,1775851989924,-150.0,0.00046512,120]
[420245160,1775851990007,-10000.0,0.00046512,120]
[420245161,1775851990087,-10000.0,0.00046512,120]
[420245162,1775851990166,-11968.78,0.00046512,120]
[420245163,1775851990264,-121481.12041179,0.00046512,120]
[420245164,1775851990343,-102131.16322324,0.00046512,120]
[420245165,1775851990422,-20276.05482884,0.00046512,60]
[420245166,1775851990505,-1292.15,0.00046512,120]
[420245167,1775851990589,-1292.15,0.00046512,120]
[420245168,1775851990665,-1292.15,0.00046512,120]
[420245169,1775851990740,-1292.15,0.00046512,120]
[420245170,1775851990813,-1292.15,0.00046512,120]
[420245171,1775851990887,-1292.15,0.00046512,120]
[420245172,1775851990957,-1292.15,0.00046512,120]
[420245173,1775851991026,-1292.15,0.00046512,120]
[420245174,1775851991095,-1292.15,0.00046512,120]
[420245175,1775851991174,-1292.15,0.00046512,120]
[420245176,1775851991320,-1292.15,0.00046512,120]
[420245177,1775851991451,-1292.15,0.00046512,120]
[420245178,1775851991534,-1292.15,0.00046512,120]
[420245179,1775851991614,-1292.15,0.00046512,120]
[420245180,1775851991683,-1292.15,0.00046512,120]
[420245181,1775851991755,-1292.15,0.00046512,120]
[420245182,1775851991832,-1292.15,0.00046512,120]
[420245183,1775851991902,-1292.15,0.00046512,120]
[420245184,1775851991975,-1292.15,0.00046512,120]
[420245185,1775851992044,-1292.15,0.00046512,120]
[420245186,1775851992114,-1292.15,0.00046512,120]
[420245187,1775851992179,-1292.15,0.00046512,120]
[420245188,1775851992252,-1292.15,0.00046512,120]
[420245189,1775851992326,-1292.29380044,0.00046512,120]
[420245190,1775851992401,-10412.68540124,0.00046512,120]
[420245191,1775851992485,-635.02287833,0.00046512,120]
[420245192,1775851992574,-500.0,0.00046512,120]
[420245193,1775851992716,-500.0,0.00046512,120]
[420245194,1775851992899,-500.0,0.00046512,120]
[420245195,1775851992999,-543.66376456,0.00046512,120]
[420245196,1775851993088,-5530.10492881,0.00046512,120]
[420245197,1775851993158,-158.03,0.00046512,120]
[420245198,1775851993225,-158.03,0.00046512,120]
[420245199,1775851993305,-158.03,0.00046512,120]
[420245200,1775851993390,-158.03,0.00046512,120]
[420245201,1775851993497,-158.03,0.00046512,120]
[420245202,1775851993587,-158.03,0.00046512,120]
[420245203,1775851993670,-158.03,0.00046512,120]
[420245204,1775851993782,-158.03,0.00046512,120]
[420245205,1775851993879,-158.03,0.00046512,120]
[420245206,1775851993954,-158.03,0.00046512,120]
[420245207,1775851994021,-158.03,0.00046512,120]
[420245208,1775851994100,-158.03,0.00046512,120]
[420245209,1775851994168,-158.03,0.00046512,120]
[420245210,1775851994247,-158.08,0.00046512,120]
[420245211,1775851994329,-500.0,0.00046512,120]
[420245212,1775851994409,-500.0,0.00046512,120]
[420245213,1775851994495,-500.0,0.00046512,120]
[420245214,1775851994574,-306.08774993,0.00046512,120]
[420245215,1775851994658,-1000.0,0.00046512,120]
[420245216,1775851994739,-1000.0,0.00046512,120]
[420245217,1775851994823,-1000.0,0.00046512,120]
[420245218,1775851994895,-1000.0,0.00046512,120]
[420245219,1775851994960,-1000.0,0.00046512,120]
[420245220,1775851995034,-374.6,0.00046512,120]
[420245221,1775851995102,-2899.98,0.00046512,120]
[420245222,1775851995174,-50000.0,0.00046512,33]
[420245223,1775851995249,-50000.0,0.00046512,35]
[420245224,1775851995322,-50000.0,0.00046512,36]
[420245225,1775851995410,-50000.0,0.00046512,37]
[420245226,1775851995489,-50000.0,0.00046512,38]
[420245227,1775851995563,-50000.0,0.00046512,39]
[420245228,1775851995644,-50000.0,0.00046512,40]
[420245229,1775851995735,-50000.0,0.00046512,41]
[420245230,1775851995829,-50000.0,0.00046512,44]
[420245231,1775851995926,-50000.0,0.00046512,45]
[420245232,1775851996066,-50000.0,0.00046512,46]
[420245233,1775851996178,-50000.0,0.00046512,47]
[420245234,1775851996341,-50000.0,0.00046512,49]
[420245235,1775851996430,-152000.0,0.00046512,120]
[420245236,1775851996503,-500.0,0.00046512,120]
[420245237,1775851996580,-500.0,0.00046512,120]
[420245238,1775851996669,-500.0,0.00046512,120]
[420245239,1775851996760,-500.0,0.00046512,120]
[420245240,1775851996841,-500.0,0.00046512,120]
[420245241,1775851996933,-500.0,0.00046512,120]
[420245242,1775851997021,-500.0,0.00046512,120]
[420245243,1775851997104,-500.0,0.00046512,120]
[420245244,1775851997183,-500.0,0.00046512,120]
[420245245,1775851997261,-500.0,0.00046512,120]
[420245246,1775851997348,-500.0,0.00046512,120]
[420245247,1775851997431,-500.0,0.00046512,120]
[420245248,1775851997526,-500.0,0.00046512,120]
[420245249,1775851997601,-500.0,0.00046512,120]
[420245250,1775851997673,-500.0,0.00046512,120]
[420245251,1775851997749,-500.0,0.00046512,120]
[420245252,1775851997830,-500.0,0.00046512,120]
[420245253,1775851997922,-500.0,0.00046512,120]
[420245254,1775851998354,-500.0,0.00046512,120]
[420245255,1775851998448,-502.18145489,0.00046512,120]
[420245256,1775851998524,-4000.684403,0.00046512,120]
[420245257,1775851998594,-20801.11141723,0.00046512,120]
[420245258,1775851998662,-55271.71939282,0.00046512,120]
[420245259,1775851998730,-500.0,0.00046512,120]
[420245260,1775851998796,-500.0,0.00046512,120]
[420245261,1775851998862,-500.0,0.00046512,120]
[420245262,1775851998928,-500.0,0.00046512,120]
[420245263,1775851998996,-500.0,0.00046512,120]
[420245264,1775851999076,-500.0,0.00046512,120]
[420245265,1775851999153,-500.0,0.00046512,120]
[420245266,1775851999239,-500.0,0.00046512,120]
[420245267,1775851999316,-500.0,0.00046512,120]
[420245268,1775851999401,-500.0,0.00046512,120]
[420245269,1775851999481,-500.0,0.00046512,120]
[420245270,1775851999553,-635.4766141,0.00046512,120]
[420245271,1775851999648,-2240.0,0.00046512,120]
[420245272,1775851999742,-500.0,0.00046512,120]
[420245273,1775851999823,-511.55437884,0.00046512,120]
[420245274,1775851999899,-1465.4159952,0.00046512,120]
[420245275,1775851999968,-4000.0,0.00046512,31]
[420245276,1775852000041,-500.0,0.00046512,120]
[420245277,1775852000110,-500.0,0.00046512,120]
[420245278,1775852000177,-500.0,0.00046512,120]
[420245279,1775852000240,-240.29254639,0.00046512,120]
[420245280,1775852000310,-5000.0,0.00046512,120]
[420245281,1775852000378,-5000.0,0.00046512,60]
[420245282,1775852000455,-7096.0,0.00046512,30]
[420245283,1775852000524,-100000.0,0.00046512,120]
[420245284,1775852000607,-601.685821,0.00046512,120]
[420245285,1775852000678,-8286.07,0.00046512,120]
[420245286,1775852000755,-8286.29,0.00046512,120]
[420245287,1775852000829,-261.89648286,0.00046512,120]
[420245288,1775852000904,-616.0,0.00046512,120]
[420245289,1775852000975,-500.0,0.00046512,120]
[420245290,1775852001043,-500.0,0.00046512,120]
[420245291,1775852001110,-500.0,0.00046512,120]
[420245292,1775852001177,-500.0,0.00046512,120]
[420245293,1775852001242,-500.0,0.00046512,120]
[420245294,1775852001313,-500.0,0.00046512,120]
[420245295,1775852001390,-500.0,0.00046512,120]
[420245296,1775852001463,-500.0,0.00046512,120]
[420245297,1775852001606,-500.0,0.00046512,120]
[420245298,1775852001723,-500.0,0.00046512,120]
[420245299,1775852001811,-500.0,0.00046512,120]
[420245300,1775852001900,-500.0,0.00046512,120]
[420245301,1775852001980,-500.0,0.00046512,120]
[420245302,1775852002072,-500.0,0.00046512,120]
[420245303,1775852002157,-500.0,0.00046512,120]
[420245304,1775852002237,-500.0,0.00046512,120]
[420245305,1775852002344,-500.0,0.00046512,120]
[420245306,1775852002490,-500.0,0.00046512,120]
[420245307,1775852002800,-500.0,0.00046512,120]
[420245308,1775852002988,-500.0,0.00046512,120]
[420245309,1775852003082,-2370.0,0.00046512,120]
[420245310,1775852003171,-50000.0,0.00046512,50]
[420245311,1775852003256,-7595.56,0.00046512,30]
[420245312,1775852003335,-7595.56,0.00046512,30]
[420245313,1775852003415,-7595.56,0.00046512,30]
[420245314,1775852003486,-7595.56,0.00046512,30]
[420245315,1775852003559,-7595.56,0.00046512,30]
[420245316,1775852003639,-7595.56,0.00046512,30]
[420245317,1775852003722,-7595.56,0.00046512,30]
[420245318,1775852003797,-7595.56,0.00046512,30]
[420245319,1775852003869,-7595.56,0.00046512,30]
[420245320,1775852003959,-7595.56,0.00046512,30]
[420245321,1775852004088,-7595.56,0.00046512,30]
[420245322,1775852004210,-7595.56,0.00046512,30]
[420245323,1775852004297,-7595.56,0.00046512,30]
[420245324,1775852004369,-7595.56,0.00046512,30]
[420245325,1775852004445,-7595.56,0.00046512,30]
[420245326,1775852004515,-7595.56,0.00046512,30]
[420245327,1775852004586,-7595.56,0.00046512,30]
[420245328,1775852004655,-7595.56,0.00046512,30]
[420245329,1775852004722,-7595.56,0.00046512,30]
[420245330,1775852004794,-7595.56,0.00046512,30]
[420245331,1775852004865,-7595.56,0.00046512,30]
[420245332,1775852004951,-7595.56,0.00046512,30]
[420245333,1775852005045,-7595.56,0.00046512,30]
[420245334,1775852005135,-7595.66,0.00046512,30]
[420245335,1775852005237,-500.0,0.00046512,120]
[420245336,1775852005326,-500.0,0.00046512,120]
[420245337,1775852005415,-500.0,0.00046512,120]
[420245338,1775852005497,-500.0,0.00046512,120]
[420245339,1775852005590,-500.0,0.00046512,120]
[420245340,1775852005699,-523.868912,0.00046512,120]
[420245341,1775852005833,-5100.0,0.00046512,39]
[420245342,1775852005949,-1966.87338346,0.00046512,120]
[420245343,1775852006027,-500.0,0.00046512,120]
[420245344,1775852006106,-500.0,0.00046512,120]
[420245345,1775852006190,-379.37307231,0.00046512,120]
[420245346,1775852006266,-500.0,0.00046512,120]
[420245347,1775852006362,-999.67,0.00046512,120]
[420245348,1775852006454,-1000.0,0.00046512,120]
[420245349,1775852006559,-50000.0,0.00046512,51]